[Event "Titled Tuesday Blitz August 1 Late 2023"]
[White "Haydon, David L"]
[Black "Der_Balak_3Halak"]
[WhiteFideId "415405"]
[WhiteElo "2656"]
[BlackElo "2411"]
[Result "1-0"]
[Round "2"]
[TimeControl "180+1"]
[Date "2023.08.01"]
[WhiteClock "0:00:25"]
[BlackClock "0:00:19"]
[Board "70"]

1. d4 {[%clk 0:03:00]}  Nf6 {[%clk 0:02:59]} 2. Nc3 {[%clk 0:03:00]}  d5 {[%clk 0:02:59]} 3. Bf4 {[%clk 0:02:59]}  c5 {[%clk 0:02:59]} 4. e3 {[%clk 0:02:59]}  a6 {[%clk 0:02:51]} 5. Nf3 {[%clk 0:02:58]}  cxd4 {[%clk 0:02:50]} 6. exd4 {[%clk 0:02:57]}  Nc6 {[%clk 0:02:51]} 7. a3 {[%clk 0:02:54]}  Bg4 {[%clk 0:02:49]} 8. Be2 {[%clk 0:02:51]}  e6 {[%clk 0:02:48]} 9. Ne5 {[%clk 0:02:46]}  Bxe2 {[%clk 0:02:36]} 10. Nxe2 {[%clk 0:02:45]}  Nxe5 {[%clk 0:02:34]} 11. Bxe5 {[%clk 0:02:45]}  Bd6 {[%clk 0:02:31]} 12. Bxd6 {[%clk 0:02:43]}  Qxd6 {[%clk 0:02:31]} 13. c3 {[%clk 0:02:44]}  O-O {[%clk 0:02:27]} 14. O-O {[%clk 0:02:44]}  Ne4 {[%clk 0:02:12]} 15. Qd3 {[%clk 0:02:42]}  Qb6 {[%clk 0:02:06]} 16. Rab1 {[%clk 0:02:40]}  Rfc8 {[%clk 0:02:02]} 17. Rfc1 {[%clk 0:02:37]}  Nd6 {[%clk 0:01:58]} 18. h3 {[%clk 0:02:33]}  h6 {[%clk 0:01:56]} 19. Rc2 {[%clk 0:02:28]}  Nc4 {[%clk 0:01:52]} 20. Qd1 {[%clk 0:02:08]}  Rc7 {[%clk 0:01:28]} 21. Nf4 {[%clk 0:02:07]}  Rac8 {[%clk 0:01:25]} 22. Nd3 {[%clk 0:02:08]}  Qd6 {[%clk 0:01:20]} 23. Re2 {[%clk 0:02:03]}  b6 {[%clk 0:01:16]} 24. f4 {[%clk 0:02:02]}  Qe7 {[%clk 0:01:03]} 25. Qf1 {[%clk 0:01:43]}  Rf8 {[%clk 0:01:00]} 26. Rbe1 {[%clk 0:01:41]}  Nd6 {[%clk 0:00:55]} 27. Ne5 {[%clk 0:01:32]}  Ne4 {[%clk 0:00:54]} 28. Qf3 {[%clk 0:01:28]}  Qe8 {[%clk 0:00:50]} 29. Nd3 {[%clk 0:01:21]}  f6 {[%clk 0:00:47]} 30. Kh2 {[%clk 0:01:16]}  Qg6 {[%clk 0:00:44]} 31. Rf1 {[%clk 0:01:10]}  f5 {[%clk 0:00:40]} 32. Ne5 {[%clk 0:01:10]}  Qe8 {[%clk 0:00:38]} 33. Qd3 {[%clk 0:01:10]}  a5 {[%clk 0:00:32]} 34. g4 {[%clk 0:01:06]}  g6 {[%clk 0:00:28]} 35. Rg2 {[%clk 0:01:03]}  Rg7 {[%clk 0:00:27]} 36. gxf5 {[%clk 0:00:53]}  gxf5 {[%clk 0:00:27]} 37. Rxg7+ {[%clk 0:00:53]}  Kxg7 {[%clk 0:00:28]} 38. Rg1+ {[%clk 0:00:53]}  Kh7 {[%clk 0:00:26]} 39. Qa6 {[%clk 0:00:51]}  Qb8 {[%clk 0:00:11]} 40. Qb5 {[%clk 0:00:41]}  Qc7 {[%clk 0:00:07]} 41. Qe2 {[%clk 0:00:33]}  Rg8 {[%clk 0:00:07]} 42. Rxg8 {[%clk 0:00:18]}  Kxg8 {[%clk 0:00:08]} 43. Qh5 {[%clk 0:00:18]}  Qg7 {[%clk 0:00:07]} 44. Qf3 {[%clk 0:00:19]}  Nd2 {[%clk 0:00:06]} 45. Qe2 {[%clk 0:00:19]}  Nc4 {[%clk 0:00:06]} 46. Nxc4 {[%clk 0:00:18]}  dxc4 {[%clk 0:00:07]} 47. Qxe6+ {[%clk 0:00:18]}  Qf7 {[%clk 0:00:07]} 48. Qxf7+ {[%clk 0:00:18]}  Kxf7 {[%clk 0:00:08]} 49. Kg3 {[%clk 0:00:18]}  Ke6 {[%clk 0:00:08]} 50. Kh4 {[%clk 0:00:18]}  Kd5 {[%clk 0:00:08]} 51. Kh5 {[%clk 0:00:19]}  Ke4 {[%clk 0:00:09]} 52. Kxh6 {[%clk 0:00:19]}  Kxf4 {[%clk 0:00:10]} 53. Kg6 {[%clk 0:00:20]}  Ke4 {[%clk 0:00:10]} 54. h4 {[%clk 0:00:20]}  f4 {[%clk 0:00:11]} 55. h5 {[%clk 0:00:20]}  f3 {[%clk 0:00:12]} 56. h6 {[%clk 0:00:21]}  f2 {[%clk 0:00:13]} 57. h7 {[%clk 0:00:22]}  f1=Q {[%clk 0:00:14]} 58. h8=Q {[%clk 0:00:22]}  Qf5+ {[%clk 0:00:14]} 59. Kg7 {[%clk 0:00:23]}  Qg5+ {[%clk 0:00:14]} 60. Kf8 {[%clk 0:00:23]}  Qd8+ {[%clk 0:00:13]} 61. Kg7 {[%clk 0:00:23]}  Qe7+ {[%clk 0:00:12]} 62. Kg6 {[%clk 0:00:21]}  Qe6+ {[%clk 0:00:10]} 63. Qf6 {[%clk 0:00:22]}  Qg8+ {[%clk 0:00:10]} 64. Kh6 {[%clk 0:00:21]}  Qg4 {[%clk 0:00:09]} 65. Qg6+ {[%clk 0:00:21]}  Qxg6+ {[%clk 0:00:09]} 66. Kxg6 {[%clk 0:00:22]}  b5 {[%clk 0:00:10]} 67. Kf6 {[%clk 0:00:23]}  b4 {[%clk 0:00:10]} 68. axb4 {[%clk 0:00:23]}  axb4 {[%clk 0:00:11]} 69. cxb4 {[%clk 0:00:23]}  Kxd4 {[%clk 0:00:10]} 70. Ke6 {[%clk 0:00:24]}  Ke4 {[%clk 0:00:08]} 71. Kd6 {[%clk 0:00:24]}  Kd4 {[%clk 0:00:08]} 72. Kc6 {[%clk 0:00:24]}  c3 {[%clk 0:00:07]} 73. bxc3+ {[%clk 0:00:24]}  Kxc3 {[%clk 0:00:08]} 74. b5 {[%clk 0:00:25]}  Kc4 {[%clk 0:00:09]} 75. b6 {[%clk 0:00:25]}  Kd4 {[%clk 0:00:10]} 76. b7 {[%clk 0:00:26]}  Ke5 {[%clk 0:00:10]} 77. b8=Q+ {[%clk 0:00:27]}  Ke4 {[%clk 0:00:11]} 78. Qc7 {[%clk 0:00:27]}  Kd4 {[%clk 0:00:12]} 79. Qd7+ {[%clk 0:00:28]}  Kc4 {[%clk 0:00:13]} 80. Qd5+ {[%clk 0:00:29]}  Kb4 {[%clk 0:00:14]} 81. Kd6 {[%clk 0:00:29]}  Ka4 {[%clk 0:00:14]} 82. Qc5 {[%clk 0:00:30]}  Kb3 {[%clk 0:00:14]} 83. Kc6 {[%clk 0:00:31]}  Ka4 {[%clk 0:00:15]} 84. Kb6 {[%clk 0:00:30]}  Kb3 {[%clk 0:00:16]} 85. Qd4 {[%clk 0:00:30]}  Kc2 {[%clk 0:00:15]} 86. Kc5 {[%clk 0:00:30]}  Kb3 {[%clk 0:00:16]} 87. Qe3+ {[%clk 0:00:30]}  Kc2 {[%clk 0:00:17]} 88. Kc4 {[%clk 0:00:30]}  Kd1 {[%clk 0:00:18]} 89. Qf2 {[%clk 0:00:30]}  Kc1 {[%clk 0:00:18]} 90. Kc3 {[%clk 0:00:30]}  Kb1 {[%clk 0:00:19]} 91. Qb2# {[%clk 0:00:25]} 1-0


[Site "https://www.chess.com"]

[Event "Titled Tuesday Blitz August 1 Late 2023"]
[White "Jakubowski, Krzysztof"]
[Black "Elissalt Cardenas, Hector"]
[WhiteFideId "1112848"]
[BlackFideId "3500632"]
[WhiteElo "2645"]
[BlackElo "2376"]
[Result "1-0"]
[Round "2"]
[TimeControl "180+1"]
[Date "2023.08.01"]
[WhiteClock "0:01:37"]
[BlackClock "0:00:33"]
[Board "72"]

1. e4 {[%clk 0:02:59]}  d6 {[%clk 0:02:59]} 2. d4 {[%clk 0:02:57]}  Nf6 {[%clk 0:03:00]} 3. Nc3 {[%clk 0:02:56]}  e5 {[%clk 0:02:58]} 4. Nge2 {[%clk 0:02:53]}  Be7 {[%clk 0:02:49]} 5. f3 {[%clk 0:02:47]}  O-O {[%clk 0:02:41]} 6. Be3 {[%clk 0:02:43]}  c6 {[%clk 0:02:28]} 7. a4 {[%clk 0:02:38]}  a5 {[%clk 0:02:27]} 8. g4 {[%clk 0:02:31]}  Na6 {[%clk 0:02:25]} 9. Bg2 {[%clk 0:02:30]}  Nb4 {[%clk 0:02:24]} 10. O-O {[%clk 0:02:30]}  Bxg4 {[%clk 0:02:14]} 11. fxg4 {[%clk 0:02:27]}  Nxg4 {[%clk 0:02:14]} 12. Bc1 {[%clk 0:02:21]}  Bg5 {[%clk 0:02:09]} 13. Rf3 {[%clk 0:02:05]}  Bxc1 {[%clk 0:01:08]} 14. Rxc1 {[%clk 0:02:03]}  exd4 {[%clk 0:01:08]} 15. Qxd4 {[%clk 0:01:59]}  Ne5 {[%clk 0:01:06]} 16. Rg3 {[%clk 0:01:56]}  f6 {[%clk 0:00:56]} 17. Nf4 {[%clk 0:01:49]}  Qe7 {[%clk 0:00:55]} 18. Nd1 {[%clk 0:01:40]}  c5 {[%clk 0:00:45]} 19. Qf2 {[%clk 0:01:39]}  Nc4 {[%clk 0:00:41]} 20. b3 {[%clk 0:01:37]}  Ne5 {[%clk 0:00:33]} 21. Ne3 {[%clk 0:01:37]} 1-0


[Site "https://www.chess.com"]

[Event "Titled Tuesday Blitz August 1 Late 2023"]
[White "AndresDelgado77"]
[Black "Fishbein, Alexander"]
[BlackFideId "2000377"]
[WhiteElo "2374"]
[BlackElo "2642"]
[Result "0-1"]
[Round "2"]
[TimeControl "180+1"]
[Date "2023.08.01"]
[WhiteClock "0:00:00"]
[BlackClock "0:01:36"]
[Board "73"]

1. e4 {[%clk 0:03:00]}  c5 {[%clk 0:02:57]} 2. Nf3 {[%clk 0:02:58]}  d6 {[%clk 0:02:57]} 3. c3 {[%clk 0:02:52]}  Nf6 {[%clk 0:02:56]} 4. h3 {[%clk 0:02:52]}  Nc6 {[%clk 0:02:54]} 5. Bd3 {[%clk 0:02:51]}  d5 {[%clk 0:02:52]} 6. e5 {[%clk 0:02:47]}  c4 {[%clk 0:02:50]} 7. Bc2 {[%clk 0:02:39]}  Ne4 {[%clk 0:02:48]} 8. d4 {[%clk 0:02:25]}  cxd3 {[%clk 0:02:45]} 9. Qxd3 {[%clk 0:02:09]}  Bf5 {[%clk 0:02:39]} 10. Qb5 {[%clk 0:02:03]}  Qd7 {[%clk 0:02:36]} 11. e6 {[%clk 0:01:46]}  Bxe6 {[%clk 0:02:29]} 12. c4 {[%clk 0:01:40]}  Nd6 {[%clk 0:02:28]} 13. Qa4 {[%clk 0:01:31]}  dxc4 {[%clk 0:02:25]} 14. Nc3 {[%clk 0:01:31]}  g6 {[%clk 0:02:19]} 15. Bf4 {[%clk 0:01:28]}  Bg7 {[%clk 0:02:15]} 16. Rd1 {[%clk 0:01:27]}  O-O {[%clk 0:02:13]} 17. Nb5 {[%clk 0:01:12]}  Ne5 {[%clk 0:01:52]} 18. Bxe5 {[%clk 0:00:16]}  Qxb5 {[%clk 0:01:50]} 19. Qxb5 {[%clk 0:00:10]}  Nxb5 {[%clk 0:01:50]} 20. a4 {[%clk 0:00:11]}  Nd6 {[%clk 0:01:48]} 21. O-O {[%clk 0:00:08]}  Bxe5 {[%clk 0:01:47]} 22. Nxe5 {[%clk 0:00:08]}  Rfd8 {[%clk 0:01:47]} 23. Rd4 {[%clk 0:00:05]}  Rac8 {[%clk 0:01:47]} 24. Bd1 {[%clk 0:00:04]}  Nf5 {[%clk 0:01:46]} 25. Rxd8+ {[%clk 0:00:03]}  Rxd8 {[%clk 0:01:45]} 26. Bf3 {[%clk 0:00:04]}  Bd5 {[%clk 0:01:40]} 27. Rd1 {[%clk 0:00:02]}  e6 {[%clk 0:01:41]} 28. g4 {[%clk 0:00:00]}  Ne7 {[%clk 0:01:36]} 0-1


[Site "https://www.chess.com"]

[Event "Titled Tuesday Blitz August 1 Late 2023"]
[White "Adewumi, Tanitoluwa"]
[Black "Bach, Matthias"]
[WhiteFideId "30966396"]
[BlackFideId "4603168"]
[WhiteElo "2636"]
[BlackElo "2374"]
[Result "1-0"]
[Round "2"]
[TimeControl "180+1"]
[Date "2023.08.01"]
[WhiteClock "0:00:17"]
[BlackClock "0:00:08"]
[Board "74"]

1. e4 {[%clk 0:03:00]}  e5 {[%clk 0:02:50]} 2. Nf3 {[%clk 0:03:00]}  Nc6 {[%clk 0:02:50]} 3. Bc4 {[%clk 0:03:00]}  Nf6 {[%clk 0:02:49]} 4. d3 {[%clk 0:03:00]}  d6 {[%clk 0:02:43]} 5. c3 {[%clk 0:02:59]}  Be6 {[%clk 0:02:43]} 6. Bxe6 {[%clk 0:02:59]}  fxe6 {[%clk 0:02:43]} 7. Qb3 {[%clk 0:02:57]}  Qd7 {[%clk 0:02:39]} 8. Qxb7 {[%clk 0:02:51]}  Rb8 {[%clk 0:02:37]} 9. Qa6 {[%clk 0:02:51]}  Be7 {[%clk 0:02:36]} 10. O-O {[%clk 0:02:43]}  O-O {[%clk 0:02:35]} 11. Qa4 {[%clk 0:02:42]}  d5 {[%clk 0:02:27]} 12. Nbd2 {[%clk 0:02:20]}  Qd6 {[%clk 0:02:21]} 13. Nb3 {[%clk 0:02:07]}  Nh5 {[%clk 0:01:56]} 14. Be3 {[%clk 0:01:57]}  Rxf3 {[%clk 0:01:53]} 15. gxf3 {[%clk 0:01:56]}  Nf4 {[%clk 0:01:28]} 16. Kh1 {[%clk 0:01:19]}  Nxd3 {[%clk 0:01:19]} 17. exd5 {[%clk 0:01:11]}  exd5 {[%clk 0:01:13]} 18. Qg4 {[%clk 0:01:11]}  Qf6 {[%clk 0:01:04]} 19. Rad1 {[%clk 0:01:07]}  e4 {[%clk 0:00:48]} 20. fxe4 {[%clk 0:01:01]}  dxe4 {[%clk 0:00:46]} 21. Qxe4 {[%clk 0:00:59]}  Nde5 {[%clk 0:00:45]} 22. f4 {[%clk 0:00:51]}  Ng4 {[%clk 0:00:43]} 23. Nd4 {[%clk 0:00:45]}  Qh6 {[%clk 0:00:34]} 24. Rd2 {[%clk 0:00:33]}  Nxe3 {[%clk 0:00:24]} 25. Qxe3 {[%clk 0:00:27]}  Bc5 {[%clk 0:00:23]} 26. Qe6+ {[%clk 0:00:25]}  Qxe6 {[%clk 0:00:21]} 27. Nxe6 {[%clk 0:00:26]}  Bd6 {[%clk 0:00:18]} 28. Rg2 {[%clk 0:00:23]}  g6 {[%clk 0:00:17]} 29. f5 {[%clk 0:00:24]}  Re8 {[%clk 0:00:16]} 30. Re1 {[%clk 0:00:20]}  Be5 {[%clk 0:00:15]} 31. Nxc7 {[%clk 0:00:17]}  Re7 {[%clk 0:00:14]} 32. Nd5 {[%clk 0:00:17]}  Rf7 {[%clk 0:00:12]} 33. fxg6 {[%clk 0:00:17]}  hxg6 {[%clk 0:00:08]} 34. Rxg6+ {[%clk 0:00:17]} 1-0


[Site "https://www.chess.com"]

[Event "Titled Tuesday Blitz August 1 Late 2023"]
[White "Abduzhaparov"]
[Black "Ovchinnikov, Vsevolod"]
[BlackFideId "24176842"]
[WhiteElo "2371"]
[BlackElo "2635"]
[Result "1-0"]
[Round "2"]
[TimeControl "180+1"]
[Date "2023.08.01"]
[WhiteClock "0:00:32"]
[BlackClock "0:00:00"]
[Board "75"]

1. Nf3 {[%clk 0:03:00]}  Nf6 {[%clk 0:02:59]} 2. c4 {[%clk 0:03:01]}  g6 {[%clk 0:03:00]} 3. Nc3 {[%clk 0:03:01]}  d5 {[%clk 0:02:59]} 4. Qa4+ {[%clk 0:03:00]}  c6 {[%clk 0:02:58]} 5. cxd5 {[%clk 0:02:59]}  Nxd5 {[%clk 0:02:59]} 6. Nxd5 {[%clk 0:02:55]}  Qxd5 {[%clk 0:02:59]} 7. e4 {[%clk 0:02:56]}  Qd8 {[%clk 0:02:50]} 8. d4 {[%clk 0:02:56]}  Bg7 {[%clk 0:02:49]} 9. Be2 {[%clk 0:02:54]}  Bg4 {[%clk 0:02:38]} 10. Be3 {[%clk 0:02:53]}  O-O {[%clk 0:02:37]} 11. Rd1 {[%clk 0:02:52]}  Nd7 {[%clk 0:02:36]} 12. Qb3 {[%clk 0:02:40]}  Qb6 {[%clk 0:02:28]} 13. Qa3 {[%clk 0:02:25]}  Rfe8 {[%clk 0:02:10]} 14. O-O {[%clk 0:02:15]}  Qc7 {[%clk 0:01:22]} 15. Rc1 {[%clk 0:02:08]}  Qd6 {[%clk 0:01:16]} 16. Qb3 {[%clk 0:01:38]}  Rab8 {[%clk 0:00:15]} 17. Rfd1 {[%clk 0:01:33]}  Bxf3 {[%clk 0:00:14]} 18. Bxf3 {[%clk 0:01:33]}  e6 {[%clk 0:00:14]} 19. g3 {[%clk 0:01:24]}  a6 {[%clk 0:00:14]} 20. Bf4 {[%clk 0:01:21]}  Qe7 {[%clk 0:00:05]} 21. Bxb8 {[%clk 0:01:21]}  Rxb8 {[%clk 0:00:05]} 22. Bg2 {[%clk 0:01:20]}  Qd6 {[%clk 0:00:04]} 23. d5 {[%clk 0:01:16]}  exd5 {[%clk 0:00:04]} 24. exd5 {[%clk 0:01:17]}  c5 {[%clk 0:00:05]} 25. Qe3 {[%clk 0:01:09]}  Bxb2 {[%clk 0:00:04]} 26. Rb1 {[%clk 0:01:02]}  Bd4 {[%clk 0:00:05]} 27. Rxd4 {[%clk 0:00:53]}  cxd4 {[%clk 0:00:06]} 28. Qxd4 {[%clk 0:00:53]}  Qc5 {[%clk 0:00:06]} 29. Qf4 {[%clk 0:00:47]}  Qc2 {[%clk 0:00:02]} 30. Re1 {[%clk 0:00:37]}  Rf8 {[%clk 0:00:00]} 31. h4 {[%clk 0:00:32]} 1-0


[Site "https://www.chess.com"]

[Event "Titled Tuesday Blitz August 1 Late 2023"]
[White "Araujo Sanchez, Josue"]
[Black "Kujawski, Adam"]
[WhiteFideId "6416896"]
[BlackFideId "1100920"]
[WhiteElo "2630"]
[BlackElo "2354"]
[Result "1-0"]
[Round "2"]
[TimeControl "180+1"]
[Date "2023.08.01"]
[WhiteClock "0:00:09"]
[BlackClock "0:00:00"]
[Board "76"]

1. b3 {[%clk 0:03:00]}  e5 {[%clk 0:02:51]} 2. Bb2 {[%clk 0:03:01]}  Nc6 {[%clk 0:02:51]} 3. e3 {[%clk 0:02:54]}  d5 {[%clk 0:02:48]} 4. Bb5 {[%clk 0:02:36]}  Bd6 {[%clk 0:02:48]} 5. Bxc6+ {[%clk 0:02:11]}  bxc6 {[%clk 0:02:47]} 6. Ne2 {[%clk 0:02:12]}  Nf6 {[%clk 0:02:43]} 7. O-O {[%clk 0:02:05]}  a5 {[%clk 0:02:43]} 8. a4 {[%clk 0:02:02]}  Ba6 {[%clk 0:02:41]} 9. d3 {[%clk 0:01:29]}  O-O {[%clk 0:02:35]} 10. Nd2 {[%clk 0:01:28]}  Qe7 {[%clk 0:02:31]} 11. Ng3 {[%clk 0:01:27]}  g6 {[%clk 0:02:26]} 12. e4 {[%clk 0:01:26]}  Nd7 {[%clk 0:02:08]} 13. Re1 {[%clk 0:01:18]}  f5 {[%clk 0:02:04]} 14. f3 {[%clk 0:01:00]}  f4 {[%clk 0:01:50]} 15. Ne2 {[%clk 0:00:57]}  Rae8 {[%clk 0:01:46]} 16. Kh1 {[%clk 0:00:54]}  Qh4 {[%clk 0:01:43]} 17. Rg1 {[%clk 0:00:53]}  Bc5 {[%clk 0:01:27]} 18. Rf1 {[%clk 0:00:45]}  g5 {[%clk 0:01:26]} 19. Qe1 {[%clk 0:00:44]}  Qh5 {[%clk 0:01:15]} 20. g4 {[%clk 0:00:40]}  Qh3 {[%clk 0:01:03]} 21. Ng1 {[%clk 0:00:34]}  Qh6 {[%clk 0:00:58]} 22. Bc3 {[%clk 0:00:31]}  Bb6 {[%clk 0:00:48]} 23. Rf2 {[%clk 0:00:26]}  Bxf2 {[%clk 0:00:42]} 24. Qxf2 {[%clk 0:00:27]}  Qd6 {[%clk 0:00:33]} 25. Re1 {[%clk 0:00:22]}  d4 {[%clk 0:00:31]} 26. Bb2 {[%clk 0:00:22]}  c5 {[%clk 0:00:28]} 27. Ba3 {[%clk 0:00:20]}  Nb6 {[%clk 0:00:26]} 28. h4 {[%clk 0:00:20]}  gxh4 {[%clk 0:00:22]} 29. Nh3 {[%clk 0:00:16]}  Re6 {[%clk 0:00:21]} 30. Rg1 {[%clk 0:00:16]}  Rh6 {[%clk 0:00:18]} 31. Kh2 {[%clk 0:00:15]}  Kh8 {[%clk 0:00:17]} 32. Nf1 {[%clk 0:00:15]}  Rg8 {[%clk 0:00:17]} 33. Rg2 {[%clk 0:00:15]}  Nd7 {[%clk 0:00:15]} 34. Qe1 {[%clk 0:00:16]}  Nf8 {[%clk 0:00:14]} 35. Qxa5 {[%clk 0:00:14]}  Nd7 {[%clk 0:00:11]} 36. b4 {[%clk 0:00:11]}  cxb4 {[%clk 0:00:10]} 37. Bxb4 {[%clk 0:00:12]}  Qb6 {[%clk 0:00:10]} 38. Qd5 {[%clk 0:00:10]}  Qxb4 {[%clk 0:00:08]} 39. Qxd7 {[%clk 0:00:10]}  Qe1 {[%clk 0:00:08]} 40. Nd2 {[%clk 0:00:09]}  Rb6 {[%clk 0:00:00]} 41. Qxc7 {[%clk 0:00:09]} 1-0


[Site "https://www.chess.com"]

[Event "Titled Tuesday Blitz August 1 Late 2023"]
[White "Ai, Evan"]
[Black "Piesik, Piotr"]
[WhiteFideId "2094770"]
[BlackFideId "1136194"]
[WhiteElo "2316"]
[BlackElo "2615"]
[Result "0-1"]
[Round "2"]
[TimeControl "180+1"]
[Date "2023.08.01"]
[WhiteClock "0:00:34"]
[BlackClock "0:01:44"]
[Board "78"]

1. e3 {[%clk 0:03:00]}  g6 {[%clk 0:02:59]} 2. d4 {[%clk 0:03:00]}  Bg7 {[%clk 0:03:00]} 3. c4 {[%clk 0:03:00]}  d6 {[%clk 0:03:00]} 4. Nc3 {[%clk 0:03:00]}  Nd7 {[%clk 0:03:01]} 5. Nf3 {[%clk 0:03:00]}  e5 {[%clk 0:03:01]} 6. Be2 {[%clk 0:02:51]}  Ngf6 {[%clk 0:03:00]} 7. b3 {[%clk 0:02:49]}  O-O {[%clk 0:02:59]} 8. Bb2 {[%clk 0:02:47]}  Re8 {[%clk 0:02:59]} 9. O-O {[%clk 0:02:43]}  c6 {[%clk 0:02:57]} 10. dxe5 {[%clk 0:02:39]}  dxe5 {[%clk 0:02:56]} 11. Nd2 {[%clk 0:02:32]}  Nc5 {[%clk 0:02:51]} 12. Qc2 {[%clk 0:02:17]}  Bf5 {[%clk 0:02:50]} 13. e4 {[%clk 0:02:16]}  Bd7 {[%clk 0:02:46]} 14. Rad1 {[%clk 0:02:13]}  Qc7 {[%clk 0:02:43]} 15. Nf3 {[%clk 0:02:11]}  Bg4 {[%clk 0:02:41]} 16. Ba3 {[%clk 0:02:10]}  Bf8 {[%clk 0:02:37]} 17. Bxc5 {[%clk 0:01:54]}  Bxc5 {[%clk 0:02:36]} 18. Ne1 {[%clk 0:01:51]}  Bxe2 {[%clk 0:02:35]} 19. Nxe2 {[%clk 0:01:51]}  Rad8 {[%clk 0:02:32]} 20. Nd3 {[%clk 0:01:46]}  Nxe4 {[%clk 0:02:28]} 21. Kh1 {[%clk 0:01:28]}  Rxd3 {[%clk 0:02:19]} 22. Rxd3 {[%clk 0:01:25]}  Nxf2+ {[%clk 0:02:19]} 23. Rxf2 {[%clk 0:01:26]}  Bxf2 {[%clk 0:02:20]} 24. Nc3 {[%clk 0:01:26]}  Bd4 {[%clk 0:02:16]} 25. Ne4 {[%clk 0:01:24]}  Qe7 {[%clk 0:02:16]} 26. Rg3 {[%clk 0:01:05]}  f5 {[%clk 0:02:12]} 27. Nd2 {[%clk 0:01:02]}  e4 {[%clk 0:02:07]} 28. Nf1 {[%clk 0:00:53]}  Qe5 {[%clk 0:01:59]} 29. Qe2 {[%clk 0:00:52]}  Bc5 {[%clk 0:01:55]} 30. h4 {[%clk 0:00:47]}  Qd4 {[%clk 0:01:52]} 31. Kh2 {[%clk 0:00:34]}  Bd6 {[%clk 0:01:44]} 0-1


[Site "https://www.chess.com"]

[Event "Titled Tuesday Blitz August 1 Late 2023"]
[White "Vafin, Ayrat"]
[Black "Pinheiro, Iung Alicio de O."]
[WhiteFideId "4146530"]
[BlackFideId "2104350"]
[WhiteElo "2282"]
[BlackElo "2603"]
[Result "0-1"]
[Round "2"]
[TimeControl "180+1"]
[Date "2023.08.01"]
[WhiteClock "0:00:07"]
[BlackClock "0:00:09"]
[Board "83"]

1. Nf3 {[%clk 0:03:00]}  d5 {[%clk 0:02:59]} 2. g3 {[%clk 0:03:01]}  c6 {[%clk 0:02:58]} 3. Bg2 {[%clk 0:03:01]}  Nf6 {[%clk 0:02:59]} 4. O-O {[%clk 0:03:01]}  Bf5 {[%clk 0:03:00]} 5. d3 {[%clk 0:03:01]}  h6 {[%clk 0:02:58]} 6. c4 {[%clk 0:03:02]}  e6 {[%clk 0:02:56]} 7. Be3 {[%clk 0:03:01]}  dxc4 {[%clk 0:02:53]} 8. dxc4 {[%clk 0:03:01]}  Qxd1 {[%clk 0:02:52]} 9. Rxd1 {[%clk 0:03:02]}  Nbd7 {[%clk 0:02:40]} 10. Nc3 {[%clk 0:03:02]}  Bc5 {[%clk 0:02:37]} 11. Bd2 {[%clk 0:03:02]}  Ng4 {[%clk 0:02:30]} 12. Be1 {[%clk 0:03:03]}  Nge5 {[%clk 0:02:24]} 13. Rac1 {[%clk 0:02:05]}  Nxf3+ {[%clk 0:02:08]} 14. Bxf3 {[%clk 0:02:06]}  Ne5 {[%clk 0:02:08]} 15. Bg2 {[%clk 0:01:59]}  Rd8 {[%clk 0:01:46]} 16. Rxd8+ {[%clk 0:01:48]}  Kxd8 {[%clk 0:01:45]} 17. Na4 {[%clk 0:01:48]}  Be7 {[%clk 0:01:40]} 18. Bc3 {[%clk 0:01:38]}  Bf6 {[%clk 0:01:35]} 19. f4 {[%clk 0:01:27]}  Nd7 {[%clk 0:01:30]} 20. Bxf6+ {[%clk 0:01:24]}  Nxf6 {[%clk 0:01:29]} 21. Nc5 {[%clk 0:01:18]}  b6 {[%clk 0:01:17]} 22. Nb3 {[%clk 0:00:52]}  Kc7 {[%clk 0:01:08]} 23. Nd4 {[%clk 0:00:49]}  Be4 {[%clk 0:01:09]} 24. Bxe4 {[%clk 0:00:40]}  Nxe4 {[%clk 0:01:08]} 25. Kf1 {[%clk 0:00:37]}  Rd8 {[%clk 0:01:07]} 26. Rd1 {[%clk 0:00:33]}  a6 {[%clk 0:00:49]} 27. Ke1 {[%clk 0:00:32]}  Nd6 {[%clk 0:00:34]} 28. b3 {[%clk 0:00:31]}  c5 {[%clk 0:00:34]} 29. Nf3 {[%clk 0:00:31]}  Ra8 {[%clk 0:00:25]} 30. Ne5 {[%clk 0:00:25]}  f6 {[%clk 0:00:24]} 31. Nd3 {[%clk 0:00:16]}  Ne4 {[%clk 0:00:22]} 32. Nf2 {[%clk 0:00:14]}  Nc3 {[%clk 0:00:21]} 33. Rd2 {[%clk 0:00:15]}  b5 {[%clk 0:00:21]} 34. Rc2 {[%clk 0:00:14]}  b4 {[%clk 0:00:20]} 35. Nd1 {[%clk 0:00:13]}  Ne4 {[%clk 0:00:20]} 36. Nf2 {[%clk 0:00:13]}  Nd6 {[%clk 0:00:19]} 37. Rd2 {[%clk 0:00:13]}  Kc6 {[%clk 0:00:19]} 38. e4 {[%clk 0:00:13]}  a5 {[%clk 0:00:17]} 39. Ke2 {[%clk 0:00:13]}  a4 {[%clk 0:00:17]} 40. e5 {[%clk 0:00:13]}  fxe5 {[%clk 0:00:17]} 41. fxe5 {[%clk 0:00:14]}  Nf5 {[%clk 0:00:17]} 42. Kf1 {[%clk 0:00:03]}  axb3 {[%clk 0:00:16]} 43. axb3 {[%clk 0:00:03]}  Ra3 {[%clk 0:00:14]} 44. g4 {[%clk 0:00:03]}  Nd4 {[%clk 0:00:14]} 45. Ne4 {[%clk 0:00:04]}  Rxb3 {[%clk 0:00:12]} 46. Rf2 {[%clk 0:00:04]}  Rf3 {[%clk 0:00:08]} 47. Rxf3 {[%clk 0:00:02]}  Nxf3 {[%clk 0:00:09]} 48. Ke2 {[%clk 0:00:03]}  Nxe5 {[%clk 0:00:10]} 49. Nd2 {[%clk 0:00:03]}  Nxg4 {[%clk 0:00:09]} 50. Kf3 {[%clk 0:00:04]}  Nf6 {[%clk 0:00:09]} 51. Kf4 {[%clk 0:00:05]}  Kd6 {[%clk 0:00:07]} 52. Ke3 {[%clk 0:00:05]}  e5 {[%clk 0:00:08]} 53. Nf3 {[%clk 0:00:05]}  Ng4+ {[%clk 0:00:07]} 54. Ke4 {[%clk 0:00:06]}  Nf2+ {[%clk 0:00:06]} 55. Ke3 {[%clk 0:00:06]}  Nd1+ {[%clk 0:00:07]} 56. Kd2 {[%clk 0:00:06]}  Nb2 {[%clk 0:00:08]} 57. Kc2 {[%clk 0:00:04]}  Nxc4 {[%clk 0:00:08]} 58. Kd3 {[%clk 0:00:05]}  Nb6 {[%clk 0:00:08]} 59. Nd2 {[%clk 0:00:04]}  c4+ {[%clk 0:00:08]} 60. Ke3 {[%clk 0:00:05]}  Kc5 {[%clk 0:00:07]} 61. Ne4+ {[%clk 0:00:06]}  Kb5 {[%clk 0:00:08]} 62. Nd2 {[%clk 0:00:06]}  Ka4 {[%clk 0:00:08]} 63. Ne4 {[%clk 0:00:07]}  Ka3 {[%clk 0:00:08]} 64. Nc5 {[%clk 0:00:07]}  b3 {[%clk 0:00:08]} 65. Kd2 {[%clk 0:00:08]}  Ka2 {[%clk 0:00:07]} 66. Na4 {[%clk 0:00:07]}  Nxa4 {[%clk 0:00:07]} 67. Kc1 {[%clk 0:00:08]}  b2+ {[%clk 0:00:08]} 68. Kd2 {[%clk 0:00:07]}  b1=Q {[%clk 0:00:09]} 0-1


[Site "https://www.chess.com"]